[Event "2026 European Womens Championship"]
[Site "Batumi, GE"]
[Date "2026.05.29"]
[Round "5"]
[White "Avelino, Camila Biscaya"]
[Black "Kalayci, Nino"]
[Result "0-1"]
[Board "122"]
[TimeControl "5400+30"]
[WhiteFideId "1938975"]
[BlackFideId "13603221"]
[WhiteElo "1937"]
[BlackElo "1755"]
[WhiteTitle "WFM"]
[BlackTitle "WCM"]
[WhiteClock "0:09:15"]
[BlackClock "0:25:21"]
[Variant "Standard"]

1. e4 {[%clk 1:30:51]}  c5 {[%clk 1:30:28]} 2. Nf3 {[%clk 1:31:09]}  a6 {[%clk 1:30:40]} 3. c3 {[%clk 1:27:29]}  d5 {[%clk 1:30:41]}
4. exd5 {[%clk 1:21:49]}  Qxd5 {[%clk 1:31:01]} 5. d4 {[%clk 1:19:40]}  e6 {[%clk 1:29:28]} 6. c4 {[%clk 1:05:02]}  Qd6 {[%clk 1:18:41]}
7. Be3 {[%clk 0:59:24]}  Nf6 {[%clk 1:15:09]} 8. Nc3 {[%clk 0:45:38]}  cxd4 {[%clk 1:13:37]} 9. Nxd4 {[%clk 0:44:57]}  Nc6 {[%clk 1:10:35]}
10. Nc2 {[%clk 0:29:31]}  Qc7 {[%clk 1:00:57]} 11. Qf3 {[%clk 0:23:41]}  Be7 {[%clk 0:38:39]} 12. O-O-O {[%clk 0:17:13]}  O-O {[%clk 0:36:30]}
13. Bf4 {[%clk 0:13:39]}  e5 {[%clk 0:29:12]} 14. Bg5 {[%clk 0:08:23]}  Bg4 {[%clk 0:28:39]} 15. Qg3 {[%clk 0:08:42]}  Bxd1 {[%clk 0:28:07]}
16. Kxd1 {[%clk 0:09:06]}  Qd8+ {[%clk 0:25:11]} 17. Kc1 {[%clk 0:09:15]}  Nh5 {[%clk 0:25:21]} 0-1

[Event "2026 European Womens Championship"]
[Site "Batumi, GE"]
[Date "2026.05.29"]
[Round "5"]
[White "Rusitashvili, Tea"]
[Black "Manukyan, Tamara"]
[Result "1-0"]
[Board "123"]
[TimeControl "5400+30"]
[WhiteFideId "13640771"]
[BlackFideId "13321307"]
[WhiteElo "1929"]
[BlackElo "1707"]
[WhiteTitle "WCM"]
[WhiteClock "0:57:54"]
[BlackClock "0:55:16"]
[Variant "Standard"]

1. e4 {[%clk 1:30:57]}  e6 {[%clk 1:30:56]} 2. d4 {[%clk 1:31:21]}  d5 {[%clk 1:31:22]} 3. Nd2 {[%clk 1:31:35]}  Nf6 {[%clk 1:31:45]}
4. e5 {[%clk 1:31:57]}  Nfd7 {[%clk 1:32:11]} 5. Bd3 {[%clk 1:32:21]}  c5 {[%clk 1:32:32]} 6. c3 {[%clk 1:32:46]}  Nc6 {[%clk 1:32:49]}
7. Ne2 {[%clk 1:33:09]}  Qb6 {[%clk 1:28:31]} 8. Nf3 {[%clk 1:31:22]}  Be7 {[%clk 1:28:33]} 9. O-O {[%clk 1:29:37]}  O-O {[%clk 1:28:26]}
10. Ng3 {[%clk 1:26:39]}  f6 {[%clk 1:24:15]} 11. exf6 {[%clk 1:24:53]}  Bxf6 {[%clk 1:23:18]} 12. dxc5 {[%clk 1:22:56]}  Qxc5 {[%clk 1:18:28]}
13. Ng5 {[%clk 1:15:35]}  Bxg5 {[%clk 1:16:33]} 14. Bxg5 {[%clk 1:15:07]}  Nde5 {[%clk 1:09:23]} 15. Bc2 {[%clk 1:04:12]}  Nc4 {[%clk 1:07:14]}
16. Qh5 {[%clk 1:02:19]}  h6 {[%clk 1:06:09]} 17. Bxh6 {[%clk 1:01:08]}  Rf6 {[%clk 1:02:54]} 18. Bg5 {[%clk 1:00:02]}  N6e5 {[%clk 0:54:03]}
19. Bxf6 {[%clk 0:57:52]}  gxf6 {[%clk 0:54:07]} 20. Qe8+ {[%clk 0:57:25]}  Kg7 {[%clk 0:53:04]} 21. Nh5+ {[%clk 0:57:39]}  Kh6 {[%clk 0:53:27]}
22. Qh8+ {[%clk 0:57:46]}  Kg5 {[%clk 0:53:50]} 23. Qxf6+ {[%clk 0:56:19]}  Kxh5 {[%clk 0:54:09]} 24. Bd1+ {[%clk 0:56:39]}  Ng4 {[%clk 0:54:26]}
25. Bxg4+ {[%clk 0:57:03]}  Kxg4 {[%clk 0:54:51]} 26. h3+ {[%clk 0:57:29]}  Kh5 {[%clk 0:55:16]} 27. g4# {[%clk 0:57:54]} 1-0

[Event "2026 European Womens Championship"]
[Site "Batumi, GE"]
[Date "2026.05.29"]
[Round "5"]
[White "Diasamidze, Lulu"]
[Black "Kedelidze, Aneta"]
[Result "1-0"]
[Board "125"]
[TimeControl "5400+30"]
[WhiteFideId "13623818"]
[BlackFideId "13626191"]
[WhiteElo "1924"]
[BlackElo "1676"]
[WhiteClock "0:05:28"]
[BlackClock "0:01:02"]
[Variant "Standard"]

1. e4 {[%clk 1:29:36]}  e5 {[%clk 1:30:52]} 2. Nf3 {[%clk 1:29:06]}  Nf6 {[%clk 1:31:13]} 3. Nxe5 {[%clk 1:29:11]}  d6 {[%clk 1:31:35]}
4. Nf3 {[%clk 1:29:37]}  Nxe4 {[%clk 1:31:56]} 5. d4 {[%clk 1:30:03]}  Bf5 {[%clk 1:32:17]} 6. Bd3 {[%clk 1:29:35]}  d5 {[%clk 1:32:31]}
7. O-O {[%clk 1:29:09]}  Be7 {[%clk 1:32:23]} 8. c4 {[%clk 1:28:15]}  Nc6 {[%clk 1:26:21]} 9. Nc3 {[%clk 1:26:56]}  Nxc3 {[%clk 1:26:34]}
10. bxc3 {[%clk 1:27:21]}  Bxd3 {[%clk 1:25:49]} 11. Qxd3 {[%clk 1:27:49]}  O-O {[%clk 1:25:17]} 12. Bf4 {[%clk 1:27:44]}  dxc4 {[%clk 1:22:29]}
13. Qxc4 {[%clk 1:27:59]}  Bd6 {[%clk 1:22:25]} 14. Bg5 {[%clk 1:22:30]}  Qd7 {[%clk 1:22:23]} 15. a4 {[%clk 1:19:59]}  b6 {[%clk 1:20:58]}
16. Rac1 {[%clk 1:05:57]}  Rfe8 {[%clk 1:07:05]} 17. Kh1 {[%clk 1:02:27]}  h6 {[%clk 1:04:05]} 18. Be3 {[%clk 1:00:09]}  Ne7 {[%clk 1:02:39]}
19. Qb3 {[%clk 0:59:00]}  Nf5 {[%clk 0:50:30]} 20. c4 {[%clk 0:56:06]}  Rab8 {[%clk 0:45:54]} 21. Rfe1 {[%clk 0:54:36]}  c6 {[%clk 0:29:09]}
22. Rcd1 {[%clk 0:47:41]}  Qc7 {[%clk 0:25:03]} 23. Qd3 {[%clk 0:44:28]}  Ne7 {[%clk 0:20:19]} 24. g3 {[%clk 0:40:38]}  Rbd8 {[%clk 0:19:02]}
25. Qc2 {[%clk 0:36:47]}  Ng6 {[%clk 0:18:11]} 26. Kg2 {[%clk 0:35:55]}  Be7 {[%clk 0:16:46]} 27. h4 {[%clk 0:35:08]}  Bf6 {[%clk 0:15:32]}
28. Qb1 {[%clk 0:24:41]}  Qb7 {[%clk 0:12:30]} 29. Qb3 {[%clk 0:21:56]}  Rd7 {[%clk 0:11:18]} 30. Rb1 {[%clk 0:20:02]}  Qa8 {[%clk 0:09:58]}
31. Qa2 {[%clk 0:18:47]}  Red8 {[%clk 0:09:28]} 32. Kg1 {[%clk 0:15:01]}  Ne7 {[%clk 0:09:25]} 33. Qc2 {[%clk 0:14:39]}  Ng6 {[%clk 0:08:43]}
34. Qf5 {[%clk 0:14:49]}  Rd6 {[%clk 0:06:37]} 35. Red1 {[%clk 0:11:13]}  Ne7 {[%clk 0:05:36]} 36. Qe4 {[%clk 0:11:13]}  Qc8 {[%clk 0:06:03]}
37. Kg2 {[%clk 0:11:27]}  Qf5 {[%clk 0:05:54]} 38. Qf4 {[%clk 0:07:45]}  Qxf4 {[%clk 0:03:22]} 39. Bxf4 {[%clk 0:08:14]}  R6d7 {[%clk 0:03:42]}
40. Re1 {[%clk 0:08:05]}  Nf5 {[%clk 0:03:57]} 41. Be5 {[%clk 0:04:24]}  Nxd4 {[%clk 0:01:34]} 42. Nxd4 {[%clk 0:03:15]}  Bxe5 {[%clk 0:00:46]}
43. Nxc6 {[%clk 0:03:33]}  Bc3 {[%clk 0:01:03]} 44. Re3 {[%clk 0:29:49]}  Bd2 {[%clk 0:25:06]} 45. Re2 {[%clk 0:30:05]}  Ra8 {[%clk 0:23:10]}
46. Rd1 {[%clk 0:29:01]}  Rd6 {[%clk 0:20:58]} 47. Ne7+ {[%clk 0:27:39]}  Kf8 {[%clk 0:21:23]} 48. Nf5 {[%clk 0:27:10]}  Rf6 {[%clk 0:21:38]}
49. Nxg7 {[%clk 0:25:36]}  Kxg7 {[%clk 0:20:34]} 50. Rdxd2 {[%clk 0:25:07]}  Rc8 {[%clk 0:18:11]} 51. Rd7 {[%clk 0:23:27]}  Rxc4 {[%clk 0:11:20]}
52. Rxa7 {[%clk 0:23:33]}  Rb4 {[%clk 0:11:41]} 53. f4 {[%clk 0:20:12]}  Rb3 {[%clk 0:11:15]} 54. Rf2 {[%clk 0:16:51]}  h5 {[%clk 0:09:15]}
55. Rf3 {[%clk 0:16:28]}  Rb2+ {[%clk 0:09:36]} 56. Rf2 {[%clk 0:16:53]}  Rb3 {[%clk 0:10:01]} 57. Kh2 {[%clk 0:16:12]}  Rd6 {[%clk 0:09:42]}
58. a5 {[%clk 0:14:10]}  bxa5 {[%clk 0:07:43]} 59. Rxa5 {[%clk 0:14:21]}  Kh6 {[%clk 0:03:42]} 60. Rc2 {[%clk 0:11:21]}  Rd1 {[%clk 0:01:43]}
61. Rf5 {[%clk 0:10:58]}  Rb7 {[%clk 0:00:36]} 62. Rc6+ {[%clk 0:11:14]}  f6 {[%clk 0:00:35]} 63. Rfxf6+ {[%clk 0:11:34]}  Kg7 {[%clk 0:00:56]}
64. Rg6+ {[%clk 0:11:56]}  Kf7 {[%clk 0:01:08]} 65. Rcf6+ {[%clk 0:12:13]}  Ke7 {[%clk 0:01:08]} 66. Rg7+ {[%clk 0:11:57]}  Kxf6 {[%clk 0:01:34]}
67. Rxb7 {[%clk 0:12:23]}  Rd5 {[%clk 0:00:59]} 68. Kh3 {[%clk 0:11:56]}  Kg6 {[%clk 0:00:49]} 69. Rb6+ {[%clk 0:12:22]}  Kf5 {[%clk 0:00:57]}
70. Rb2 {[%clk 0:12:04]}  Kf6 {[%clk 0:00:42]} 71. Re2 {[%clk 0:11:40]}  Kg6 {[%clk 0:00:32]} 72. Re8 {[%clk 0:11:40]}  Kf5 {[%clk 0:00:48]}
73. Kg2 {[%clk 0:10:07]}  Rd2+ {[%clk 0:00:48]} 74. Kf3 {[%clk 0:10:36]}  Rd3+ {[%clk 0:01:05]} 75. Re3 {[%clk 0:11:00]}  Rd5 {[%clk 0:01:27]}
76. Re8 {[%clk 0:09:10]}  Rd3+ {[%clk 0:01:43]} 77. Kg2 {[%clk 0:09:39]}  Rd2+ {[%clk 0:02:02]} 78. Kh3 {[%clk 0:10:09]}  Rd5 {[%clk 0:02:24]}
79. Rg8 {[%clk 0:08:26]}  Ke4 {[%clk 0:02:17]} 80. Ra8 {[%clk 0:08:19]}  Kf3 {[%clk 0:02:25]} 81. Ra3+ {[%clk 0:08:31]}  Ke4 {[%clk 0:02:51]}
82. Ra1 {[%clk 0:07:37]}  Rb5 {[%clk 0:02:55]} 83. Rg1 {[%clk 0:07:09]}  Ra5 {[%clk 0:01:02]} 84. g4 {[%clk 0:05:59]}  Ra3+ {[%clk 0:00:40]}
85. Rg3 {[%clk 0:06:06]}  hxg4+ {[%clk 0:01:05]} 86. Kxg4 {[%clk 0:06:22]}  Ra8 {[%clk 0:01:15]} 87. h5 {[%clk 0:06:22]}  Rg8 {[%clk 0:00:35]}
88. Kh4 {[%clk 0:06:31]}  Rh8 {[%clk 0:01:00]} 89. Rg4 {[%clk 0:05:05]}  Kf5 {[%clk 0:01:25]} 90. Rg7 {[%clk 0:05:18]}  Kxf4 {[%clk 0:01:24]}
91. Rf7+ {[%clk 0:05:47]}  Ke5 {[%clk 0:01:42]} 92. Kg5 {[%clk 0:06:03]}  Rg8 {[%clk 0:00:52]} 93. Kh6 {[%clk 0:06:28]}  Ke6 {[%clk 0:00:52]}
94. Rg7 {[%clk 0:06:39]}  Rf8 {[%clk 0:00:51]} 95. Kg6 {[%clk 0:06:48]}  Rf6 {[%clk 0:01:05]} 96. Kh7 {[%clk 0:07:09]}  Rf5 {[%clk 0:00:33]}
97. h6 {[%clk 0:07:26]}  Rf8 {[%clk 0:00:40]} 98. Rg8 {[%clk 0:07:31]}  Rf7+ {[%clk 0:00:36]} 99. Kg6 {[%clk 0:07:57]}  Rf6 {[%clk 0:00:54]}
100. Kg5 {[%clk 0:08:26]}  Rf5+ {[%clk 0:01:13]} 101. Kg4 {[%clk 0:08:49]}  Rf7 {[%clk 0:01:18]} 102. Ra8 {[%clk 0:09:04]}  Rd7 {[%clk 0:00:35]}
103. Kg5 {[%clk 0:09:14]}  Rf7 {[%clk 0:00:34]} 104. Ra6+ {[%clk 0:08:20]}  Ke7 {[%clk 0:00:46]} 105. Ra7+ {[%clk 0:08:46]}  Ke6 {[%clk 0:00:35]}
106. h7 {[%clk 0:07:58]}  Rxa7 {[%clk 0:00:34]} 107. h8=Q {[%clk 0:08:23]}  Ra5+ {[%clk 0:00:47]} 108. Kg6 {[%clk 0:08:52]}  Re5 {[%clk 0:01:02]}
109. Qd8 {[%clk 0:08:58]}  Rd5 {[%clk 0:01:18]} 110. Qe8+ {[%clk 0:09:22]}  Kd6 {[%clk 0:01:42]} 111. Kf6 {[%clk 0:09:50]}  Kc5 {[%clk 0:02:03]}
112. Ke6 {[%clk 0:10:02]}  Rd6+ {[%clk 0:02:18]} 113. Ke5 {[%clk 0:10:31]}  Rd5 {[%clk 0:02:43]} 114. Ke4 {[%clk 0:11:00]}  Rd4+ {[%clk 0:03:04]}
115. Ke3 {[%clk 0:11:30]}  Rd5 {[%clk 0:03:23]} 116. Qe7+ {[%clk 0:11:18]}  Kc6 {[%clk 0:03:19]} 117. Qa7 {[%clk 0:11:38]}  Kd6 {[%clk 0:02:55]}
118. Kf4 {[%clk 0:11:31]}  Rc5 {[%clk 0:02:34]} 119. Qb6+ {[%clk 0:11:23]}  Kd5 {[%clk 0:02:56]} 120. Qd8+ {[%clk 0:11:42]}  Kc4 {[%clk 0:02:39]}
121. Ke4 {[%clk 0:12:02]}  Kb4 {[%clk 0:02:06]} 122. Qd6 {[%clk 0:11:52]}  Kc4 {[%clk 0:02:22]} 123. Qd3+ {[%clk 0:12:03]}  Kb4 {[%clk 0:02:44]}
124. Kd4 {[%clk 0:12:32]}  Rb5 {[%clk 0:02:53]} 125. Qc2 {[%clk 0:12:13]}  Ka5 {[%clk 0:03:02]} 126. Kc4 {[%clk 0:10:44]}  Rb4+ {[%clk 0:03:10]}
127. Kc3 {[%clk 0:10:55]}  Rb5 {[%clk 0:03:17]} 128. Qg6 {[%clk 0:09:22]}  Rc5+ {[%clk 0:03:21]} 129. Kd4 {[%clk 0:07:20]}  Rb5 {[%clk 0:03:21]}
130. Kc4 {[%clk 0:06:59]}  Rb4+ {[%clk 0:03:40]} 131. Kc3 {[%clk 0:07:28]}  Rb5 {[%clk 0:03:58]} 132. Qd6 {[%clk 0:07:41]}  Rb6 {[%clk 0:03:18]}
133. Qa3+ {[%clk 0:06:37]}  Kb5 {[%clk 0:03:41]} 134. Kd4 {[%clk 0:07:00]}  Kc6 {[%clk 0:03:07]} 135. Qe7 {[%clk 0:07:18]}  Kb5 {[%clk 0:02:16]}
136. Kd5 {[%clk 0:05:44]}  Ka5 {[%clk 0:01:28]} 137. Qa7+ {[%clk 0:05:44]}  Kb5 {[%clk 0:01:21]} 138. Qa3 {[%clk 0:04:36]}  Ra6 {[%clk 0:00:44]}
139. Qb3+ {[%clk 0:04:59]}  Ka5 {[%clk 0:01:02]} 140. Kc5 {[%clk 0:05:28]} 1-0

[Event "2026 European Womens Championship"]
[Site "Batumi, GE"]
[Date "2026.05.29"]
[Round "5"]
[White "Xing, Lida"]
[Black "Vakhania, Aleksandra"]
[Result "1-0"]
[Board "127"]
[TimeControl "5400+30"]
[WhiteFideId "13326171"]
[BlackFideId "13602560"]
[WhiteElo "1598"]
[BlackElo "2079"]
[BlackTitle "WIM"]
[WhiteClock "0:02:47"]
[BlackClock "0:02:15"]
[Variant "Standard"]

1. e4 {[%clk 1:30:58]}  c6 {[%clk 1:30:52]} 2. d4 {[%clk 1:31:21]}  d5 {[%clk 1:31:17]} 3. e5 {[%clk 1:31:46]}  Bf5 {[%clk 1:31:13]}
4. h4 {[%clk 1:32:07]}  h5 {[%clk 1:30:08]} 5. c4 {[%clk 1:32:31]}  e6 {[%clk 1:30:25]} 6. Nc3 {[%clk 1:32:46]}  Nd7 {[%clk 1:29:24]}
7. cxd5 {[%clk 1:33:06]}  cxd5 {[%clk 1:29:33]} 8. Bd3 {[%clk 1:33:10]}  Bxd3 {[%clk 1:29:03]} 9. Qxd3 {[%clk 1:33:32]}  Ne7 {[%clk 1:28:44]}
10. Bg5 {[%clk 1:32:23]}  Qb6 {[%clk 1:29:04]} 11. Rc1 {[%clk 1:31:15]}  Nc6 {[%clk 1:27:07]} 12. Nge2 {[%clk 1:30:37]}  Be7 {[%clk 1:24:59]}
13. Bxe7 {[%clk 1:30:28]}  Nxe7 {[%clk 1:25:07]} 14. O-O {[%clk 1:28:06]}  a6 {[%clk 1:16:50]} 15. Nf4 {[%clk 1:24:57]}  Qa5 {[%clk 1:09:59]}
16. Rfd1 {[%clk 1:21:48]}  g6 {[%clk 1:01:42]} 17. Qd2 {[%clk 1:10:55]}  Qd8 {[%clk 0:59:38]} 18. Qe2 {[%clk 1:08:36]}  Nb6 {[%clk 0:52:30]}
19. b3 {[%clk 1:01:31]}  Nf5 {[%clk 0:48:12]} 20. g3 {[%clk 1:01:54]}  Rc8 {[%clk 0:46:35]} 21. Qd3 {[%clk 0:54:18]}  Kf8 {[%clk 0:43:07]}
22. Nh3 {[%clk 0:53:49]}  Kg7 {[%clk 0:42:54]} 23. Ne2 {[%clk 0:53:34]}  Qe7 {[%clk 0:43:03]} 24. Nef4 {[%clk 0:53:21]}  Qa3 {[%clk 0:41:04]}
25. Rc2 {[%clk 0:28:35]}  Rxc2 {[%clk 0:35:02]} 26. Qxc2 {[%clk 0:28:45]}  Rc8 {[%clk 0:35:29]} 27. Qe2 {[%clk 0:27:08]}  Rc1 {[%clk 0:31:59]}
28. Ng5 {[%clk 0:26:51]}  Nc8 {[%clk 0:20:00]} 29. Kg2 {[%clk 0:24:36]}  Nce7 {[%clk 0:19:59]} 30. Rd2 {[%clk 0:22:46]}  Nc6 {[%clk 0:16:23]}
31. Qf3 {[%clk 0:15:49]}  Qa5 {[%clk 0:05:18]} 32. Nxh5+ {[%clk 0:01:20]}  Kf8 {[%clk 0:03:12]} 33. Rd3 {[%clk 0:00:34]}  Qe1 {[%clk 0:02:54]}
34. Kh3 {[%clk 0:00:52]}  Qf1+ {[%clk 0:02:37]} 35. Kg4 {[%clk 0:00:56]}  gxh5+ {[%clk 0:02:05]} 36. Kxh5 {[%clk 0:01:22]}  Qh1 {[%clk 0:01:54]}
37. Qf4 {[%clk 0:01:33]}  Nce7 {[%clk 0:02:06]} 38. Nh7+ {[%clk 0:01:36]}  Ke8 {[%clk 0:01:48]} 39. Qg5 {[%clk 0:02:01]}  Kd7 {[%clk 0:01:57]}
40. g4 {[%clk 0:02:19]}  Qe4 {[%clk 0:02:07]} 41. Nf6+ {[%clk 0:02:38]}  Kd8 {[%clk 0:01:22]} 42. Nxe4 {[%clk 0:02:54]}  dxe4 {[%clk 0:01:38]}
43. Qxc1 {[%clk 0:02:42]}  exd3 {[%clk 0:01:50]} 44. gxf5 {[%clk 0:03:06]}  Nxf5 {[%clk 0:02:15]} 45. Qd2 {[%clk 0:02:47]} 1-0

[Event "2026 European Womens Championship"]
[Site "Batumi, GE"]
[Date "2026.05.29"]
[Round "5"]
[White "Muradyan, Anahit"]
[Black "Khairova, Evelina"]
[Result "1-0"]
[Board "128"]
[TimeControl "5400+30"]
[WhiteFideId "13314807"]
[BlackFideId "2845768"]
[WhiteElo "1977"]
[BlackElo "1880"]
[WhiteClock "1:27:18"]
[BlackClock "0:29:48"]
[Variant "Standard"]

1. Nf3 {[%clk 1:30:30]}  Nf6 {[%clk 1:30:55]} 2. d4 {[%clk 1:30:54]}  e6 {[%clk 1:31:16]} 3. c4 {[%clk 1:31:16]}  Bb4+ {[%clk 1:30:55]}
4. Bd2 {[%clk 1:31:39]}  Qe7 {[%clk 1:31:12]} 5. Qb3 {[%clk 1:31:28]}  Bxd2+ {[%clk 1:14:23]} 6. Nbxd2 {[%clk 1:31:52]}  d6 {[%clk 1:13:33]}
7. g3 {[%clk 1:32:05]}  b6 {[%clk 1:01:09]} 8. Bg2 {[%clk 1:32:25]}  Bb7 {[%clk 1:00:59]} 9. O-O {[%clk 1:32:43]}  Nbd7 {[%clk 1:00:03]}
10. Qc2 {[%clk 1:29:55]}  a5 {[%clk 0:59:02]} 11. e4 {[%clk 1:29:25]}  e5 {[%clk 0:58:01]} 12. d5 {[%clk 1:27:59]}  Nc5 {[%clk 0:50:18]}
13. Ne1 {[%clk 1:27:18]}  O-O {[%clk 0:40:54]} 14. Nd3 {[%clk 1:27:22]}  Nxd3 {[%clk 0:35:08]} 15. Qxd3 {[%clk 1:27:47]}  Nh5 {[%clk 0:34:55]}
16. Qe2 {[%clk 1:27:02]}  g6 {[%clk 0:33:05]} 17. b3 {[%clk 1:18:36]}  Bc8 {[%clk 0:27:57]} 18. f4 {[%clk 1:17:27]}  Ng7 {[%clk 0:22:55]}
19. Rae1 {[%clk 1:15:38]}  Bd7 {[%clk 0:21:49]} 20. Qd3 {[%clk 1:06:37]}  f5 {[%clk 0:16:12]} 21. fxe5 {[%clk 1:06:37]}  fxe4 {[%clk 0:13:05]}
22. exd6 {[%clk 1:06:10]}  cxd6 {[%clk 0:09:13]} 23. Nxe4 {[%clk 1:03:59]}  Rxf1+ {[%clk 0:08:12]} 24. Rxf1 {[%clk 1:02:53]}  Bf5 {[%clk 0:07:45]}
25. g4 {[%clk 1:02:36]}  Bxe4 {[%clk 0:07:49]} 26. Qxe4 {[%clk 1:03:02]}  Qxe4 {[%clk 0:05:47]} 27. Bxe4 {[%clk 1:03:29]}  Re8 {[%clk 0:05:30]}
28. Bf3 {[%clk 1:02:01]}  Re3 {[%clk 0:04:53]} 29. Kf2 {[%clk 1:02:18]}  Rc3 {[%clk 0:05:17]} 30. Re1 {[%clk 1:02:44]}  Kf7 {[%clk 0:05:06]}
31. Be4 {[%clk 1:01:37]}  Rh3 {[%clk 0:03:42]} 32. Rf1 {[%clk 0:58:31]}  Ke7 {[%clk 0:03:43]} 33. Kg2 {[%clk 0:58:57]}  Re3 {[%clk 0:03:41]}
34. Bf3 {[%clk 0:59:08]}  Rc3 {[%clk 0:03:41]} 35. Rf2 {[%clk 0:57:59]}  a4 {[%clk 0:02:08]} 36. Bd1 {[%clk 0:57:25]}  Rd3 {[%clk 0:01:26]}
37. Bc2 {[%clk 0:56:36]}  Rc3 {[%clk 0:01:26]} 38. Kf1 {[%clk 0:56:55]}  axb3 {[%clk 0:01:04]} 39. axb3 {[%clk 0:57:22]}  b5 {[%clk 0:00:57]}
40. cxb5 {[%clk 0:56:29]}  Rc5 {[%clk 0:01:22]} 41. Bd3 {[%clk 0:56:53]}  Ne8 {[%clk 0:00:47]} 42. b6 {[%clk 0:56:59]}  Rc8 {[%clk 0:00:41]}
43. Re2+ {[%clk 0:56:37]}  Kf8 {[%clk 0:28:57]} 44. Bb5 {[%clk 1:26:51]}  Nf6 {[%clk 0:29:23]} 45. b7 {[%clk 1:26:51]}  Rb8 {[%clk 0:29:48]}
46. Bc6 {[%clk 1:27:18]} 1-0

[Event "2026 European Womens Championship"]
[Site "Batumi, GE"]
[Date "2026.05.29"]
[Round "5"]
[White "Saltkhutsishvili, Sara"]
[Black "Recica, Jona"]
[Result "1-0"]
[Board "129"]
[TimeControl "5400+30"]
[WhiteFideId "13636995"]
[BlackFideId "22105239"]
[WhiteElo "1763"]
[BlackElo "1842"]
[WhiteClock "0:12:14"]
[BlackClock "0:17:18"]
[Variant "Standard"]

1. e4 {[%clk 1:30:56]}  e5 {[%clk 1:28:26]} 2. Nf3 {[%clk 1:31:23]}  Nc6 {[%clk 1:28:47]} 3. Bc4 {[%clk 1:31:47]}  Nf6 {[%clk 1:29:05]}
4. d3 {[%clk 1:32:11]}  Bc5 {[%clk 1:29:06]} 5. c3 {[%clk 1:32:36]}  d6 {[%clk 1:29:03]} 6. O-O {[%clk 1:32:55]}  a6 {[%clk 1:29:29]}
7. b4 {[%clk 1:32:35]}  Ba7 {[%clk 1:29:36]} 8. Nbd2 {[%clk 1:32:17]}  h6 {[%clk 1:29:22]} 9. h3 {[%clk 1:32:07]}  g5 {[%clk 1:27:59]}
10. d4 {[%clk 1:26:24]}  g4 {[%clk 1:24:54]} 11. hxg4 {[%clk 1:25:47]}  Nxg4 {[%clk 1:23:25]} 12. Qb3 {[%clk 1:22:12]}  Qf6 {[%clk 1:21:32]}
13. b5 {[%clk 1:17:50]}  axb5 {[%clk 0:59:05]} 14. Bxb5 {[%clk 1:15:20]}  Kd8 {[%clk 0:56:33]} 15. Nc4 {[%clk 1:05:01]}  Rg8 {[%clk 0:46:04]}
16. dxe5 {[%clk 0:57:39]}  Ncxe5 {[%clk 0:44:12]} 17. Ncxe5 {[%clk 0:57:30]}  Nxe5 {[%clk 0:41:58]} 18. Nxe5 {[%clk 0:56:29]}  Qg7 {[%clk 0:37:18]}
19. Nxf7+ {[%clk 0:42:07]}  Ke7 {[%clk 0:37:31]} 20. Ng5 {[%clk 0:41:57]}  hxg5 {[%clk 0:37:45]} 21. e5 {[%clk 0:41:39]}  Be6 {[%clk 0:33:48]}
22. exd6+ {[%clk 0:39:08]}  cxd6 {[%clk 0:33:46]} 23. Bc4 {[%clk 0:38:25]}  Qe5 {[%clk 0:31:24]} 24. Qxb7+ {[%clk 0:32:11]}  Bd7 {[%clk 0:28:32]}
25. Bxg8 {[%clk 0:22:23]}  Bxf2+ {[%clk 0:22:33]} 26. Rxf2 {[%clk 0:20:32]}  Rxg8 {[%clk 0:22:52]} 27. Qf3 {[%clk 0:19:58]}  Be6 {[%clk 0:22:25]}
28. Re2 {[%clk 0:17:15]}  Qc5+ {[%clk 0:22:20]} 29. Be3 {[%clk 0:17:23]}  Qb5 {[%clk 0:22:07]} 30. Rae1 {[%clk 0:17:21]}  g4 {[%clk 0:21:35]}
31. Qg3 {[%clk 0:16:44]}  Kd7 {[%clk 0:19:59]} 32. Rd2 {[%clk 0:15:41]}  Qc6 {[%clk 0:19:53]} 33. Red1 {[%clk 0:15:36]}  d5 {[%clk 0:20:18]}
34. Rc1 {[%clk 0:12:43]}  Qc4 {[%clk 0:19:47]} 35. Rb2 {[%clk 0:12:28]}  Qc7 {[%clk 0:17:18]} 36. Qxc7+ {[%clk 0:12:14]} 1-0

[Event "2026 European Womens Championship"]
[Site "Batumi, GE"]
[Date "2026.05.29"]
[Round "5"]
[White "Casadevall Mainau, Iraida"]
[Black "Danielyan, Lilia"]
[Result "0-1"]
[Board "130"]
[TimeControl "5400+30"]
[WhiteFideId "54543142"]
[BlackFideId "13319841"]
[WhiteElo "1729"]
[BlackElo "1728"]
[WhiteClock "0:14:21"]
[BlackClock "1:30:30"]
[Variant "Standard"]

1. e4 {[%clk 1:30:30]}  c5 {[%clk 0:00:00]} 2. Nf3 {[%clk 1:30:08]}  Nc6 {[%clk 0:00:00]} 3. d4 {[%clk 1:29:34]}  cxd4 {[%clk 0:00:00]}
4. Nxd4 {[%clk 1:29:11]}  Nf6 {[%clk 0:00:00]} 5. Nc3 {[%clk 1:28:17]}  e5 {[%clk 0:00:00]} 6. Ndb5 {[%clk 1:27:10]}  d6 {[%clk 0:00:00]}
7. a4 {[%clk 1:25:15]}  a6 {[%clk 0:00:00]} 8. Na3 {[%clk 1:24:45]}  Be6 {[%clk 0:00:00]} 9. Bg5 {[%clk 1:22:28]}  Be7 {[%clk 0:00:00]}
10. Bc4 {[%clk 1:19:47]}  O-O {[%clk 0:00:00]} 11. Bxf6 {[%clk 1:18:45]}  Bxf6 {[%clk 0:00:00]} 12. O-O {[%clk 1:15:30]}  Rc8 {[%clk 0:00:00]}
13. Nd5 {[%clk 1:14:51]}  Bg5 {[%clk 0:00:00]} 14. c3 {[%clk 1:13:46]}  g6 {[%clk 0:00:00]} 15. Qd3 {[%clk 0:53:13]}  Ne7 {[%clk 0:00:00]}
16. Rfd1 {[%clk 0:48:22]}  Nxd5 {[%clk 0:00:00]} 17. Bxd5 {[%clk 0:48:01]}  Bxd5 {[%clk 0:00:00]} 18. Qxd5 {[%clk 0:47:47]}  Rc6 {[%clk 0:00:00]}
19. Nc4 {[%clk 0:30:32]}  Qc7 {[%clk 0:00:00]} 20. b3 {[%clk 0:21:46]}  Rd8 {[%clk 0:00:00]} 21. Qa5 {[%clk 0:14:21]}  Rxc4 {[%clk 0:00:00]} 0-1